[Event "Queens Festival Europe 2022"]
[Site "Tornelo"]
[Date "2022.06.19"]
[Round "10.6"]
[White "Arora, Tashika"]
[Black "Bordin, Silvia"]
[Result "0-1"]
[ECO "E04"]
[WhiteElo "1822"]
[BlackElo "1991"]
[Annotator "NA RC"]
[PlyCount "66"]
[EventDate "2022.06.19"]
[EventType "swiss"]
[EventCountry "NET"]
[SourceTitle "playchess.com"]
[Source "ChessBase"]
[SourceQuality "1"]
[TimeControl "180+2"]

1. d4 {[%emt 0:00:02]} d5 {[%emt 0:00:04]} 2. Nf3 {[%emt 0:00:02]} e6 {[%emt 0:00:01]} 3. c4 {[%emt 0:00:02]} c5 {[%emt 0:00:02]} 4. g3 {[%emt 0:00:02]} Nc6 {[%emt 0:00:01]} 5. Bg2 {[%emt 0:00:01]} Nf6 {[%emt 0:00:04]} 6. O-O {[%emt 0:00:02]} dxc4 {[%emt 0:00:11]} 7. Qa4 {[%emt 0:00:02]} Bd7 {[%emt 0:00:12]} 8. Qxc4 {[%emt 0:00:03]} cxd4 {[%emt 0:00:03]} 9. Nxd4 {[%emt 0:00:04]} Nxd4 {[%emt 0:00:03]} 10. Qxd4 {[%emt 0:00:02]} Bc6 {[%emt 0:00:09]} 11. Bxc6+ {[%emt 0:00:03]} bxc6 {[%emt 0:00:03]} 12. Qa4 {[%emt 0:00:05]} Qc8 {[%emt 0:00:05]} 13. Bf4 {[%emt 0:00:07]} Be7 {[%emt 0:00:04]} 14. Rc1 {[%emt 0:00:04]} O-O {[%emt 0:00:06]} 15. Rxc6 {[%emt 0:00:14]} Qd7 {[%emt 0:00:10]} 16. Qc2 {[%emt 0:00:06]} Nd5 {[%emt 0:00:04]} 17. Bd2 {[%emt 0:00:08]} Bf6 {[%emt 0:00:03]} 18. e4 {[%emt 0:00:26]} Nb6 {[%emt 0:00:05]} 19. Bb4 {[%emt 0:00:27]} Rfc8 {[%emt 0:00:04]} 20. Rxc8+ {[%emt 0:00:02]} Rxc8 {[%emt 0:00:02]} 21. Nc3 {[%emt 0:00:10]} Bd4 {[%emt 0:00:10]} 22. Rd1 {[%emt 0:00:14]} e5 {[%emt 0:00:03]} 23. Qd2 {[%emt 0:00:16]} h6 {[%emt 0:00:15]} 24. Ne2 {[%emt 0:00:08]} Nc4 {[%emt 0:00:11]} 25. Qe1 {[%emt 0:00:22]} Nxb2 {[%emt 0:00:10]} 26. Rd2 {[%emt 0:00:14]} Nc4 {[%emt 0:00:06]} 27. Rd1 {[%emt 0:00:04]} Rd8 {[%emt 0:00:14]} 28. Nxd4 {[%emt 0:00:04]} exd4 {[%emt 0:00:02]} 29. Qe2 {[%emt 0:00:07]} Ne5 {[%emt 0:00:05]} 30. f4 {[%emt 0:00:09]} Nc6 {[%emt 0:00:03]} 31. Bc5 {[%emt 0:00:05]} d3 {[%emt 0:00:02]} 32. Qe3 {[%emt 0:00:02]} a6 {[%emt 0:00:08]} 33. a4 {[%emt 0:00:03]} Na5 {[%emt 0:00:43]} 0-1

[Event "Queens Festival Europe 2022"]
[Site "Tornelo"]
[Date "2022.06.19"]
[Round "10.6"]
[White "Subramanian, Anusha"]
[Black "Egger, Stefanie"]
[Result "1/2-1/2"]
[ECO "A06"]
[WhiteElo "1671"]
[BlackElo "1700"]
[Annotator "NA RC"]
[PlyCount "152"]
[EventDate "2022.06.19"]
[EventType "swiss"]
[EventCountry "NET"]
[SourceTitle "playchess.com"]
[Source "ChessBase"]
[SourceQuality "1"]
[TimeControl "180+2"]

1. b3 {[%emt 0:00:02]} d5 {[%emt 0:00:12]} 2. Bb2 {[%emt 0:00:03]} e6 {[%emt 0:00:02]} 3. Nf3 {[%emt 0:00:02]} c5 {[%emt 0:00:01]} 4. e3 {[%emt 0:00:01]} Nf6 {[%emt 0:00:02]} 5. Bb5+ {[%emt 0:00:03]} Nc6 {[%emt 0:00:02]} 6. Ne5 {[%emt 0:00:02]} Qc7 {[%emt 0:00:07]} 7. O-O {[%emt 0:00:09]} Bd6 {[%emt 0:00:02]} 8. Nf3 {[%emt 0:00:09]} O-O {[%emt 0:00:04]} 9. d4 {[%emt 0:00:04]} a6 {[%emt 0:00:06]} 10. Be2 {[%emt 0:00:02]} cxd4 {[%emt 0:00:29]} 11. Nxd4 {[%emt 0:00:03]} Nxd4 {[%emt 0:00:03]} 12. Bxd4 {[%emt 0:00:02]} Be5 {[%emt 0:00:05]} 13. c4 {[%emt 0:00:08]} dxc4 {[%emt 0:00:06]} 14. Bxc4 {[%emt 0:00:04]} b5 {[%emt 0:00:03]} 15. Be2 {[%emt 0:00:03]} Bb7 {[%emt 0:00:01]} 16. Nd2 {[%emt 0:00:58]} Bxh2+ {[%emt 0:00:30]} 17. Kh1 {[%emt 0:00:01]} Be5 {[%emt 0:00:10]} 18. Nf3 {[%emt 0:00:02]} Bxd4 {[%emt 0:00:05]} 19. Nxd4 {[%emt 0:00:00]} Rfd8 {[%emt 0:00:07]} 20. Qc1 {[%emt 0:00:07]} Qe5 {[%emt 0:00:16]} 21. Bf3 {[%emt 0:00:06]} Bxf3 {[%emt 0:00:08]} 22. Nxf3 {[%emt 0:00:00]} Qh5+ {[%emt 0:00:04]} 23. Kg1 {[%emt 0:00:02]} Rac8 {[%emt 0:00:03]} 24. Qb2 {[%emt 0:00:03]} Ne4 {[%emt 0:00:20]} 25. Qe5 {[%emt 0:00:09]} Qg6 {[%emt 0:00:04]} 26. Nh4 {[%emt 0:00:09]} Qg4 {[%emt 0:00:37]} 27. f3 {[%emt 0:00:15]} Qxh4 {[%emt 0:00:02]} 28. fxe4 {[%emt 0:00:05]} f6 {[%emt 0:00:01]} 29. Qxe6+ {[%emt 0:00:04]} Kh8 {[%emt 0:00:01]} 30. Qf5 {[%emt 0:00:15]} Re8 {[%emt 0:00:02]} 31. Rf4 {[%emt 0:00:03]} Qg5 {[%emt 0:00:03]} 32. Re1 {[%emt 0:00:13]} Qxf5 {[%emt 0:00:02]} 33. exf5 {[%emt 0:00:02]} Re5 {[%emt 0:00:01]} 34. g4 {[%emt 0:00:03]} Rce8 {[%emt 0:00:02]} 35. e4 {[%emt 0:00:02]} Kg8 {[%emt 0:00:02]} 36. Kf2 {[%emt 0:00:01]} Kf7 {[%emt 0:00:02]} 37. Kf3 {[%emt 0:00:08]} Rc8 {[%emt 0:00:03]} 38. Rh1 {[%emt 0:00:05]} h6 {[%emt 0:00:01]} 39. Rd1 {[%emt 0:00:02]} Rc7 {[%emt 0:00:03]} 40. Rd6 {[%emt 0:00:02]} a5 {[%emt 0:00:01]} 41. Rd2 {[%emt 0:00:08]} Rce7 {[%emt 0:00:03]} 42. Ke3 {[%emt 0:00:04]} Rc7 {[%emt 0:00:01]} 43. Rff2 {[%emt 0:00:07]} Ke7 {[%emt 0:00:02]} 44. Rf1 {[%emt 0:00:07]} Rc6 {[%emt 0:00:03]} 45. Rfd1 {[%emt 0:00:02]} Rc7 {[%emt 0:00:04]} 46. Rd5 {[%emt 0:00:02]} Rxd5 {[%emt 0:00:02]} 47. Rxd5 {[%emt 0:00:01]} Rc2 {[%emt 0:00:04]} 48. Rxb5 {[%emt 0:00:04]} Rxa2 {[%emt 0:00:02]} 49. Rb7+ {[%emt 0:00:01]} Kf8 {[%emt 0:00:01]} 50. Kd4 {[%emt 0:00:02]} a4 {[%emt 0:00:02]} 51. Kd5 {[%emt 0:00:04]} axb3 {[%emt 0:00:01]} 52. Rxb3 {[%emt 0:00:02]} Ra5+ {[%emt 0:00:02]} 53. Ke6 {[%emt 0:00:01]} Ra6+ {[%emt 0:00:02]} 54. Kd7 {[%emt 0:00:03]} Ra7+ {[%emt 0:00:01]} 55. Kd6 {[%emt 0:00:01]} Re7 {[%emt 0:00:02]} 56. Rb8+ {[%emt 0:00:04]} Kf7 {[%emt 0:00:02]} 57. Kd5 {[%emt 0:00:02]} Rd7+ {[%emt 0:00:01]} 58. Kc4 {[%emt 0:00:01]} Re7 {[%emt 0:00:02]} 59. Kd3 {[%emt 0:00:02]} Rd7+ {[%emt 0:00:01]} 60. Ke3 {[%emt 0:00:02]} g6 {[%emt 0:00:01]} 61. fxg6+ {[%emt 0:00:03]} Kxg6 {[%emt 0:00:02]} 62. Kf4 {[%emt 0:00:01]} Kg7 {[%emt 0:00:04]} 63. Rb5 {[%emt 0:00:02]} Re7 {[%emt 0:00:01]} 64. Rh5 {[%emt 0:00:04]} Kg6 {[%emt 0:00:02]} 65. Rf5 {[%emt 0:00:02]} Kg7 {[%emt 0:00:04]} 66. Rd5 {[%emt 0:00:04]} Kg6 {[%emt 0:00:01]} 67. Rd6 {[%emt 0:00:01]} Rf7 {[%emt 0:00:02]} 68. e5 {[%emt 0:00:02]} Kg7 {[%emt 0:00:02]} 69. exf6+ {[%emt 0:00:03]} Rxf6+ {[%emt 0:00:01]} 70. Rxf6 {[%emt 0:00:02]} Kxf6 {[%emt 0:00:01]} 71. Kf3 {[%emt 0:00:02]} Ke5 {[%emt 0:00:04]} 72. Kg3 {[%emt 0:00:01]} Kf6 {[%emt 0:00:02]} 73. Kh4 {[%emt 0:00:02]} Kg6 {[%emt 0:00:02]} 74. Kg3 {[%emt 0:00:02]} Kg5 {[%emt 0:00:01]} 75. Kh3 {[%emt 0:00:01]} h5 {[%emt 0:00:01]} 76. gxh5 {[%emt 0:00:03]} Kxh5 {[%emt 0:00:01]} 1/2-1/2

[Event "Queens Festival Europe 2022"]
[Site "Tornelo"]
[Date "2022.06.19"]
[Round "10.6"]
[White "Ismayilova, Khanim"]
[Black "Rahimli, Ulkar"]
[Result "1-0"]
[ECO "A18"]
[WhiteElo "1647"]
[BlackElo "1268"]
[Annotator "NA RC"]
[PlyCount "107"]
[EventDate "2022.06.19"]
[EventType "swiss"]
[EventCountry "NET"]
[SourceTitle "playchess.com"]
[Source "ChessBase"]
[SourceQuality "1"]
[TimeControl "180+2"]

1. c4 {[%emt 0:00:02]} Nf6 {[%emt 0:00:06]} 2. Nc3 {[%emt 0:00:02]} d6 {[%emt 0:00:02]} 3. e4 {[%emt 0:00:03]} e6 {[%emt 0:00:02]} 4. g3 {[%emt 0:00:02]} Be7 {[%emt 0:00:03]} 5. Bg2 {[%emt 0:00:02]} O-O {[%emt 0:00:03]} 6. d3 {[%emt 0:00:01]} c6 {[%emt 0:00:03]} 7. Nge2 {[%emt 0:00:02]} d5 {[%emt 0:00:02]} 8. cxd5 {[%emt 0:00:03]} cxd5 {[%emt 0:00:07]} 9. e5 {[%emt 0:00:03]} Nfd7 {[%emt 0:00:02]} 10. d4 {[%emt 0:00:01]} Nc6 {[%emt 0:00:02]} 11. O-O {[%emt 0:00:02]} a6 {[%emt 0:00:03]} 12. f4 {[%emt 0:00:01]} f5 {[%emt 0:00:03]} 13. Be3 {[%emt 0:00:11]} Rf7 {[%emt 0:00:15]} 14. Nxd5 {[%emt 0:00:40]} exd5 {[%emt 0:00:23]} 15. e6 {[%emt 0:00:27]} Rf6 {[%emt 0:00:07]} 16. exd7 {[%emt 0:00:01]} Qxd7 {[%emt 0:00:09]} 17. Qb3 {[%emt 0:00:02]} Nb4 {[%emt 0:00:08]} 18. a3 {[%emt 0:00:05]} Nc6 {[%emt 0:00:15]} 19. Nc3 {[%emt 0:00:02]} Kh8 {[%emt 0:00:10]} 20. Nxd5 {[%emt 0:00:02]} Rb8 {[%emt 0:00:44]} 21. Nxf6 {[%emt 0:00:02]} Bxf6 {[%emt 0:00:02]} 22. Rad1 {[%emt 0:00:08]} Qd6 {[%emt 0:00:06]} 23. Rfe1 {[%emt 0:00:04]} Be6 {[%emt 0:00:06]} 24. d5 {[%emt 0:00:02]} Bf7 {[%emt 0:00:03]} 25. Qb6 {[%emt 0:00:05]} Bd8 {[%emt 0:00:09]} 26. Qc5 {[%emt 0:00:46]} Qxc5 {[%emt 0:00:08]} 27. Bxc5 {[%emt 0:00:00]} Na5 {[%emt 0:00:02]} 28. d6 {[%emt 0:00:07]} h6 {[%emt 0:00:03]} 29. d7 {[%emt 0:00:02]} Nc4 {[%emt 0:00:04]} 30. Re8+ {[%emt 0:00:08]} Kh7 {[%emt 0:00:03]} 31. Be7 {[%emt 0:00:02]} Ne3 {[%emt 0:00:06]} 32. Rxd8 {[%emt 0:00:03]} Rxd8 {[%emt 0:00:05]} 33. Bxd8 {[%emt 0:00:02]} Be6 {[%emt 0:00:01]} 34. Re1 {[%emt 0:00:05]} Bxd7 {[%emt 0:00:06]} 35. Rxe3 {[%emt 0:00:02]} b5 {[%emt 0:00:02]} 36. Re7 {[%emt 0:00:02]} b4 {[%emt 0:00:05]} 37. Rxd7 {[%emt 0:00:02]} a5 {[%emt 0:00:01]} 38. axb4 {[%emt 0:00:02]} axb4 {[%emt 0:00:02]} 39. Bf6 {[%emt 0:00:02]} Kg6 {[%emt 0:00:02]} 40. Bxg7 {[%emt 0:00:03]} h5 {[%emt 0:00:02]} 41. Bd5 {[%emt 0:00:03]} b3 {[%emt 0:00:01]} 42. Be5 {[%emt 0:00:03]} h4 {[%emt 0:00:04]} 43. Be6 {[%emt 0:00:11]} hxg3 {[%emt 0:00:02]} 44. hxg3 {[%emt 0:00:02]} Kh6 {[%emt 0:00:03]} 45. Bg7+ {[%emt 0:00:04]} Kg6 {[%emt 0:00:01]} 46. g4 {[%emt 0:00:07]} fxg4 {[%emt 0:00:03]} 47. f5+ {[%emt 0:00:01]} Kg5 {[%emt 0:00:04]} 48. f6 {[%emt 0:00:02]} g3 {[%emt 0:00:02]} 49. f7 {[%emt 0:00:02]} g2 {[%emt 0:00:01]} 50. f8=Q {[%emt 0:00:04]} Kg6 {[%emt 0:00:02]} 51. Bf7+ {[%emt 0:00:02]} Kg5 {[%emt 0:00:01]} 52. Qc5+ {[%emt 0:00:03]} Kh4 {[%emt 0:00:02]} 53. Rd4+ {[%emt 0:00:02]} Kg3 {[%emt 0:00:02]} 54. Qc3# {[%emt 0:00:01]} 1-0

[Event "Queens Festival Europe 2022"]
[Site "Tornelo"]
[Date "2022.06.19"]
[Round "10.7"]
[White "Richtrova, Eliska"]
[Black "Maksimovic, Suzana"]
[Result "1-0"]
[ECO "B30"]
[WhiteElo "2204"]
[BlackElo "2145"]
[Annotator "TA"]
[PlyCount "55"]
[EventDate "2022.06.19"]
[EventType "swiss"]
[EventCountry "NET"]
[SourceTitle "playchess.com"]
[Source "ChessBase"]
[SourceQuality "1"]
[TimeControl "180+2"]

{[%evp 9,55,12,18,12,22,26,29,0,0,-25,-20,-39,-12,-36,-35,-32,-34,-41,-29,-29,-16,-45,-46,-102,-18,-25,65,47,52,53,209,62,197,-8,133,8,75,76,209,0,131,34,302,280,278,280,29997,29998]} 1. Nf3 {[%emt 0:00:02]} c5 {[%emt 0:00:05]} 2. e4 {[%emt 0:00:04]} Nc6 {[%emt 0:00:02]} 3. Nc3 {[%emt 0:00:02]} e5 {[%emt 0:00:04]} 4. d3 {[%emt 0:00:01]} h6 {[%emt 0:00:09]} 5. g3 {[%emt 0:00:06]} Nf6 {[%emt 0:00:03]} 6. Bg2 {[%emt 0:00:02] B30: Sicilian: 2...Nc6 3 Bb5, lines without ...g6.} d6 {[%emt 0:00:12]} 7. O-O {[%emt 0:00:02]} g6 {[%emt 0:00:01]} 8. h3 {[%emt 0:00:06] White has an edge.} Bg7 {[%emt 0:00:02]} 9. Nh4 {[%emt 0:00:06]} O-O {[%emt 0:00:06] [#]} 10. Bd2 $146 {[%emt 0:00:10]} ({Predecessor:} 10. Be3 Nd4 11. Ne2 g5 12. Bxd4 cxd4 13. Nf5 Bxf5 14. exf5 Qd7 15. g4 Rfe8 16. Ng3 {0-1 (57) Senkyr,M (2103)-Tichy,M (1985) Czech Republic 2019}) 10... Kh7 {[%emt 0:00:09]} 11. Be1 {[%emt 0:00:03]} Be6 {[%emt 0:00:05]} 12. f4 {[%emt 0:00:03]} exf4 {[%emt 0:00:07]} 13. gxf4 {[%emt 0:00:02]} a6 {[%emt 0:00:12]} 14. f5 {[%emt 0:00:04]} Bc8 {[%emt 0:00:02]} 15. fxg6+ {[%emt 0:00:06]} fxg6 {[%emt 0:00:02]} 16. Ne2 {[%emt 0:00:23]} (16. Nd5 $15) 16... Ne5 {[%emt 0:00:05]} (16... Nh5 $17 17. Rxf8 Qxf8) 17. c3 $1 $11 {[%emt 0:00:05][%cal Bc2c3,Bc3d4][%mdl 32]} Bd7 {[%emt 0:00:08]} ({Black should try} 17... c4 $11 18. d4 Nd3) 18. d4 $14 {[%emt 0:00:02]} cxd4 {[%emt 0:00:03]} 19. cxd4 {[%emt 0:00:02]} Nc4 {[%emt 0:00:07]} (19... Nc6 $1 $14) 20. Qb3 {[%emt 0:00:05]} (20. Qd3 $1 $18 Bb5 21. Nxg6 $1 {[%mdl 512]}) 20... b5 {[%emt 0:00:03]} (20... Rc8 $1 $14) 21. Qg3 $2 {[%emt 0:00:04]} (21. Qd3 $1 $18 Be8 22. b3) 21... g5 {[%emt 0:00:20] [#]} (21... Qe8 $11) 22. Nf5 {[%emt 0:00:15]} (22. Qd3 $1 $16 {Hoping for e5+.} gxh4 23. e5+ Kh8 24. exf6 Bxf6 25. b3) 22... Bxf5 {[%emt 0:00:03]} (22... Nh5 $1 $11 23. Qc3 Rc8) 23. Rxf5 $16 {[%emt 0:00:05] And now b3 would win.} Qd7 {[%emt 0:00:20]} (23... Nh5 $16 24. Qf2 Nf4) 24. Bc3 $2 {[%emt 0:00:23]} (24. b3 $18) 24... Rae8 {[%emt 0:00:05]} (24... d5 $1 $11) 25. Raf1 {[%emt 0:00:06]} ({White should play} 25. Qd3 $16 {aiming for e5.} Kg8 26. Ng3) 25... Nxe4 {[%emt 0:00:06][%mdl 8192]} (25... Nh5 $1 $14 26. Qd3 Rxf5 27. Rxf5 Ne3) 26. Bxe4 $18 {[%emt 0:00:06]} Rxe4 {[%emt 0:00:03]} 27. Rxf8 {[%emt 0:00:05]} Rxe2 $2 {[%emt 0:00:04]} (27... Bxf8 $18 28. Qd3 (28. Rxf8 Rxe2 29. Qf3 Re7 $16) 28... d5) 28. Qd3+ {[%emt 0:00:05] Weighted Error Value: White=0.56/Black=0.89} 1-0

[Event "Queens Festival Europe 2022"]
[Site "Tornelo"]
[Date "2022.06.19"]
[Round "10.7"]
[White "Cassi, Elisa"]
[Black "Can, Isil"]
[Result "0-1"]
[ECO "C97"]
[WhiteElo "1999"]
[BlackElo "1901"]
[Annotator "NA RC"]
[PlyCount "82"]
[EventDate "2022.06.19"]
[EventType "swiss"]
[EventCountry "NET"]
[SourceTitle "playchess.com"]
[Source "ChessBase"]
[SourceQuality "1"]
[TimeControl "180+2"]

1. e4 {[%emt 0:00:02]} e5 {[%emt 0:00:04]} 2. Nf3 {[%emt 0:00:02]} Nc6 {[%emt 0:00:01]} 3. Bb5 {[%emt 0:00:01]} a6 {[%emt 0:00:01]} 4. Ba4 {[%emt 0:00:01]} Nf6 {[%emt 0:00:01]} 5. O-O {[%emt 0:00:01]} Be7 {[%emt 0:00:01]} 6. Re1 {[%emt 0:00:01]} b5 {[%emt 0:00:01]} 7. Bb3 {[%emt 0:00:02]} d6 {[%emt 0:00:01]} 8. c3 {[%emt 0:00:00]} O-O {[%emt 0:00:02]} 9. h3 {[%emt 0:00:03]} Na5 {[%emt 0:00:01]} 10. Bc2 {[%emt 0:00:07]} c5 {[%emt 0:00:02]} 11. d4 {[%emt 0:00:02]} Qc7 {[%emt 0:00:01]} 12. d5 {[%emt 0:00:03]} Nd7 {[%emt 0:00:16]} 13. b3 {[%emt 0:00:04]} Nb6 {[%emt 0:00:04]} 14. Nbd2 {[%emt 0:00:06]} c4 {[%emt 0:00:05]} 15. b4 {[%emt 0:00:02]} Nb7 {[%emt 0:00:01]} 16. Nf1 {[%emt 0:00:12]} Bd7 {[%emt 0:00:02]} 17. Be3 {[%emt 0:00:09]} a5 {[%emt 0:00:04]} 18. a3 {[%emt 0:00:02]} axb4 {[%emt 0:00:13]} 19. axb4 {[%emt 0:00:06]} Na4 {[%emt 0:00:10]} 20. Qd2 {[%emt 0:00:06]} Ra6 {[%emt 0:00:09]} 21. Ng3 {[%emt 0:00:16]} Rfa8 {[%emt 0:00:03]} 22. Nf5 {[%emt 0:00:02]} Bf8 {[%emt 0:00:02]} 23. N3h4 {[%emt 0:00:15]} g6 {[%emt 0:00:06]} 24. Nh6+ {[%emt 0:00:03]} Bxh6 {[%emt 0:00:23]} 25. Bxh6 {[%emt 0:00:02]} Qd8 {[%emt 0:00:06]} 26. Nf3 {[%emt 0:00:29]} f6 {[%emt 0:00:07]} 27. Nh2 {[%emt 0:00:03]} Qe7 {[%emt 0:00:04]} 28. f4 {[%emt 0:00:06]} exf4 {[%emt 0:00:37]} 29. Bxf4 {[%emt 0:00:02]} Nd8 {[%emt 0:00:06]} 30. Rf1 {[%emt 0:00:04]} Nf7 {[%emt 0:00:03]} 31. Ng4 {[%emt 0:00:06]} Bxg4 {[%emt 0:00:10]} 32. hxg4 {[%emt 0:00:01]} Ne5 {[%emt 0:00:01]} 33. g5 {[%emt 0:00:04]} fxg5 {[%emt 0:00:21]} 34. Bxg5 {[%emt 0:00:03]} Qg7 {[%emt 0:00:05]} 35. Bh6 {[%emt 0:00:12]} Qa7+ {[%emt 0:00:04]} 36. Be3 {[%emt 0:00:26]} Qe7 {[%emt 0:00:06]} 37. Rae1 {[%emt 0:00:20]} Nb2 {[%emt 0:00:16]} 38. Bg5 {[%emt 0:00:07]} Qa7+ {[%emt 0:00:03]} 39. Kh1 {[%emt 0:00:01]} Nbd3 {[%emt 0:00:01]} 40. Re2 {[%emt 0:00:22]} Ra1 {[%emt 0:00:05]} 41. Rxa1 {[%emt 0:00:03]} Qxa1+ {[%emt 0:00:03]} 0-1

[Event "Queens Festival Europe 2022"]
[Site "Tornelo"]
[Date "2022.06.19"]
[Round "10.7"]
[White "Khalilova, Khadija"]
[Black "Frundina, Yelyzaveta"]
[Result "1-0"]
[ECO "B86"]
[WhiteElo "1777"]
[BlackElo "1624"]
[Annotator "NA RC"]
[PlyCount "99"]
[EventDate "2022.06.19"]
[EventType "swiss"]
[EventCountry "NET"]
[SourceTitle "playchess.com"]
[Source "ChessBase"]
[SourceQuality "1"]
[TimeControl "180+2"]

1. e4 {[%emt 0:00:02]} c5 {[%emt 0:00:05]} 2. Nf3 {[%emt 0:00:03]} d6 {[%emt 0:00:02]} 3. d4 {[%emt 0:00:02]} cxd4 {[%emt 0:00:01]} 4. Nxd4 {[%emt 0:00:02]} Nf6 {[%emt 0:00:03]} 5. Nc3 {[%emt 0:00:02]} a6 {[%emt 0:00:07]} 6. Bc4 {[%emt 0:00:03]} e6 {[%emt 0:00:01]} 7. Bb3 {[%emt 0:00:01]} Be7 {[%emt 0:00:06]} 8. O-O {[%emt 0:00:03]} O-O {[%emt 0:00:02]} 9. Be3 {[%emt 0:00:03]} Nbd7 {[%emt 0:00:06]} 10. f3 {[%emt 0:00:03]} Qc7 {[%emt 0:00:13]} 11. Qd2 {[%emt 0:00:03]} b5 {[%emt 0:00:06]} 12. a4 {[%emt 0:00:08]} b4 {[%emt 0:00:13]} 13. Na2 {[%emt 0:00:04]} a5 {[%emt 0:00:12]} 14. Nb5 {[%emt 0:00:04]} Qc6 {[%emt 0:00:11]} 15. c3 {[%emt 0:00:02]} Ba6 {[%emt 0:00:03]} 16. cxb4 {[%emt 0:00:12]} Bxb5 {[%emt 0:00:14]} 17. axb5 {[%emt 0:00:03]} Qxb5 {[%emt 0:00:04]} 18. Rfc1 {[%emt 0:00:27]} Rfc8 {[%emt 0:00:11]} 19. h3 {[%emt 0:00:40]} Ne5 {[%emt 0:00:11]} 20. Bd4 {[%emt 0:00:31]} a4 {[%emt 0:00:26]} 21. Bd1 {[%emt 0:00:07]} h6 {[%emt 0:00:22]} 22. Be2 {[%emt 0:00:05]} Qb7 {[%emt 0:00:14]} 23. b5 {[%emt 0:00:05]} a3 {[%emt 0:00:11]} 24. bxa3 {[%emt 0:00:08]} Rxa3 {[%emt 0:00:05]} 25. Nb4 {[%emt 0:00:06]} Rxa1 {[%emt 0:00:08]} 26. Rxa1 {[%emt 0:00:04]} Ra8 {[%emt 0:00:08]} 27. Rxa8+ {[%emt 0:00:07]} Qxa8 {[%emt 0:00:01]} 28. b6 {[%emt 0:00:07]} Qb7 {[%emt 0:00:03]} 29. Ba6 {[%emt 0:00:04]} Qb8 {[%emt 0:00:03]} 30. b7 {[%emt 0:00:02]} d5 {[%emt 0:00:03]} 31. Bxe5 {[%emt 0:00:07]} Qxe5 {[%emt 0:00:04]} 32. Nc6 {[%emt 0:00:02]} Bc5+ {[%emt 0:00:04]} 33. Kf1 {[%emt 0:00:07]} Qa1+ {[%emt 0:00:02]} 34. Ke2 {[%emt 0:00:11]} Qxa6+ {[%emt 0:00:02]} 35. Qd3 {[%emt 0:00:07]} Qxb7 {[%emt 0:00:02]} 36. Na5 {[%emt 0:00:02]} Qb4 {[%emt 0:00:03]} 37. Nc6 {[%emt 0:00:03]} Qb2+ {[%emt 0:00:02]} 38. Kd1 {[%emt 0:00:02]} Qa1+ {[%emt 0:00:02]} 39. Ke2 {[%emt 0:00:02]} Qb2+ {[%emt 0:00:01]} 40. Kd1 {[%emt 0:00:02]} Qa1+ {[%emt 0:00:03]} 41. Kc2 {[%emt 0:00:01]} Qa2+ {[%emt 0:00:01]} 42. Kd1 {[%emt 0:00:03]} Qa4+ {[%emt 0:00:03]} 43. Ke2 {[%emt 0:00:01]} Qxc6 {[%emt 0:00:01]} 44. e5 {[%emt 0:00:02]} Nd7 {[%emt 0:00:03]} 45. f4 {[%emt 0:00:02]} Nb6 {[%emt 0:00:02]} 46. g4 {[%emt 0:00:03]} g6 {[%emt 0:00:02]} 47. Qb3 {[%emt 0:00:02]} Kg7 {[%emt 0:00:02]} 48. h4 {[%emt 0:00:01]} d4 {[%emt 0:00:02]} 49. g5 {[%emt 0:00:02]} Qe4+ {[%emt 0:00:02]} 50. Kd1 {[%emt 0:00:02]} 1-0

[Event "Queens Festival Europe 2022"]
[Site "Tornelo"]
[Date "2022.06.19"]
[Round "10.7"]
[White "Andries, Leia"]
[Black "Jafarova, Aysel"]
[Result "0-1"]
[ECO "B01"]
[WhiteElo "1438"]
[BlackElo "1481"]
[Annotator "NA RC"]
[PlyCount "108"]
[EventDate "2022.06.19"]
[EventType "swiss"]
[EventCountry "NET"]
[SourceTitle "playchess.com"]
[Source "ChessBase"]
[SourceQuality "1"]
[TimeControl "180+2"]

1. e4 {[%emt 0:00:02]} d5 {[%emt 0:00:04]} 2. exd5 {[%emt 0:00:01]} Nf6 {[%emt 0:00:03]} 3. d4 {[%emt 0:00:01]} Nxd5 {[%emt 0:00:02]} 4. c4 {[%emt 0:00:04]} Nb6 {[%emt 0:00:01]} 5. Nf3 {[%emt 0:00:03]} g6 {[%emt 0:00:01]} 6. Nc3 {[%emt 0:00:03]} Bg7 {[%emt 0:00:02]} 7. Be2 {[%emt 0:00:04]} O-O {[%emt 0:00:01]} 8. O-O {[%emt 0:00:04]} Nc6 {[%emt 0:00:01]} 9. Be3 {[%emt 0:00:01]} Bg4 {[%emt 0:00:03]} 10. d5 {[%emt 0:00:02]} Bxf3 {[%emt 0:00:07]} 11. Bxf3 {[%emt 0:00:11]} Ne5 {[%emt 0:00:02]} 12. c5 {[%emt 0:00:18]} Nxf3+ {[%emt 0:00:23]} 13. Qxf3 {[%emt 0:00:00]} Nc4 {[%emt 0:00:17]} 14. Nd1 {[%emt 0:00:44]} Ne5 {[%emt 0:00:11]} 15. Qe4 {[%emt 0:00:16]} f5 {[%emt 0:00:02]} 16. Qb4 {[%emt 0:00:14]} Qxd5 {[%emt 0:00:03]} 17. Nc3 {[%emt 0:00:07]} Qc6 {[%emt 0:00:07]} 18. Rfe1 {[%emt 0:00:09]} Kh8 {[%emt 0:00:06]} 19. Bf4 {[%emt 0:00:05]} Nd3 {[%emt 0:00:04]} 20. Qc4 {[%emt 0:00:07]} Nxf4 {[%emt 0:00:11]} 21. Qxf4 {[%emt 0:00:04]} Qxc5 {[%emt 0:00:04]} 22. Rac1 {[%emt 0:00:06]} e5 {[%emt 0:00:38]} 23. Qf3 {[%emt 0:00:07]} e4 {[%emt 0:00:06]} 24. Qf4 {[%emt 0:00:08]} Qe5 {[%emt 0:00:14]} 25. Qg5 {[%emt 0:00:13]} Bf6 {[%emt 0:00:04]} 26. Qh6 {[%emt 0:00:02]} Bg7 {[%emt 0:00:04]} 27. Qg5 {[%emt 0:00:02]} c6 {[%emt 0:00:02]} 28. f3 {[%emt 0:00:05]} Qd4+ {[%emt 0:00:05]} 29. Kh1 {[%emt 0:00:11]} exf3 {[%emt 0:00:09]} 30. gxf3 {[%emt 0:00:01]} Qf2 {[%emt 0:00:07]} 31. Qf4 {[%emt 0:00:06]} Rae8 {[%emt 0:00:06]} 32. Rf1 {[%emt 0:00:03]} Qxb2 {[%emt 0:00:06]} 33. Qc4 {[%emt 0:00:04]} Bxc3 {[%emt 0:00:04]} 34. Rxc3 {[%emt 0:00:04]} Rd8 {[%emt 0:00:16]} 35. Rb3 {[%emt 0:00:05]} Qd4 {[%emt 0:00:04]} 36. Qe2 {[%emt 0:00:05]} Rfe8 {[%emt 0:00:02]} 37. Qg2 {[%emt 0:00:02]} b5 {[%emt 0:00:01]} 38. Rb2 {[%emt 0:00:02]} a5 {[%emt 0:00:02]} 39. Rbf2 {[%emt 0:00:02]} Qc3 {[%emt 0:00:03]} 40. Rc2 {[%emt 0:00:02]} Qf6 {[%emt 0:00:03]} 41. f4 {[%emt 0:00:03]} Re4 {[%emt 0:00:02]} 42. Rcf2 {[%emt 0:00:04]} Rde8 {[%emt 0:00:01]} 43. Rc2 {[%emt 0:00:01]} Qd6 {[%emt 0:00:03]} 44. Rd2 {[%emt 0:00:02]} Rd4 {[%emt 0:00:03]} 45. Rdf2 {[%emt 0:00:03]} Ree4 {[%emt 0:00:01]} 46. Qg3 {[%emt 0:00:02]} Rd3 {[%emt 0:00:03]} 47. Qg2 {[%emt 0:00:02]} c5 {[%emt 0:00:03]} 48. Rc2 {[%emt 0:00:02]} c4 {[%emt 0:00:01]} 49. Rcf2 {[%emt 0:00:01]} c3 {[%emt 0:00:01]} 50. Rc1 {[%emt 0:00:02]} b4 {[%emt 0:00:01]} 51. Rfc2 {[%emt 0:00:02]} Rd1+ {[%emt 0:00:02]} 52. Rxd1 {[%emt 0:00:07]} Qxd1+ {[%emt 0:00:02]} 53. Qg1 {[%emt 0:00:01]} Qxc2 {[%emt 0:00:02]} 54. Qa7 {[%emt 0:00:01]} Re1+ {[%emt 0:00:02]} 0-1